{"text_format":"3","workbook":"xlsx","n_sheets":5,"sheets":["About This Invoice Tracker","Invoice","Customers","Invoices - main","Invoice details"],"not_rendered":{"defined_names":8},"read":"whole","date_system":"1900"}

{"sheet":"About This Invoice Tracker","index":0,"n_rows":39,"n_cols":3,"rows_kept":39,"merged":[[3,1,3,7],[4,1,4,7],[5,1,5,7],[6,1,6,7],[7,2,7,7],[8,2,8,7],[9,2,9,7],[10,2,10,7],[11,2,11,7],[12,1,12,7],[13,2,13,7],[14,1,14,7],[15,2,15,7],[16,2,16,7],[17,2,17,7],[18,2,18,7],[19,2,19,7],[20,2,20,7],[21,1,21,7],[22,1,22,7],[23,2,23,7],[24,2,24,7],[25,2,25,7],[26,2,26,7],[27,1,27,7],[28,1,28,7],[29,2,29,7],[30,2,30,7],[31,2,31,7],[32,2,32,7],[33,2,33,7],[35,2,35,7],[36,2,36,7],[37,2,37,7],[38,2,38,7]]}
[null,"About this invoice tracker"]
[]
[]
[null,"This invoice tracker is designed to maintain a history of customers, invoices, and invoice details so you can store multiple invoices without creating multiple files. You can also use this invoice tracker to analyze your previously invoiced data. For example, you can view all invoices for a customer, a specific project, or view all invoices for the last month, the last year, and more."]
[null,"Before you get started, take a look at the sample data provided. On the invoice sheet, select the cell to the right of invoice # (cell L8) and a drop down list will appear. Select the drop down arrow and then select a sample invoice. Notice all of the invoice information automatically changes to reflect the selected invoice. Now, look at the customers, invoices - main, and invoice details sheets. Each of these sheets supply information to the invoice and any changes you make will be updated automatically. "]
[null,"How do I get started?"]
[null,"Modify the invoice sheet so it reflects your company information using the following steps:"]
[null,"1.","Navigate to the invoice sheet, and on the review tab, in the changes group, select unprotect sheet. "]
[null,null,"Note: The invoice sheet is protected to help avoid unintentional changes, since, as previously mentioned, the majority of the data on this sheet is pulled from all other sheets in the workbook. "]
[null,"2.","Customize the invoice header by typing in your company name, street address, city, state, ZIP, email address, website, and so on. At the bottom of the invoice (row 43), modify the payment instructions. "]
[null,null,"Important! Do not modify the billing or invoice information. All of these cells have formulas that will automatically update the invoice, as noted in the introduction.  "]
[null,"3.","(Optional) Modify the colors throughout the workbook: On the page layout tab, in the themes group, select colors and select another theme color set from the color gallery. "]
[null,"Tip: Create a custom theme color set to match your company branding. To do so, on the page layout tab, in the themes group, select colors, and then select create new theme colors. "]
[null,"4.","After you've made your desired changes, return to the invoice sheet and on the review tab, in the changes group, select protect sheet, and then select OK. When the invoice sheet is protected the only cell you can select is the cell with invoice # drop down."]
[null,"How do I create an invoice?"]
[null,"1.","On the customers sheet, enter customer information such as the company name and address. Note that the company # is an important entry as it provides a unique identifier for each company that is used throughout the invoice tracker. Also note you only need to add a company once. For subsequent invoices to the same company, this step can be skipped. "]
[null,null,"Note:  If you assign the same number to more than one company or enter the same company name more than once, the entries will turn red to alert you to the duplication. "]
[null,"2.","On the invoices - main sheet, enter the primary information for your invoice such as, invoice #, invoice date, and project description. Like the company #, the invoice # is an important entry as it provides a unique identifier for each invoice and is used throughout the invoice tracker. Another important entry is the company. When you select a company from the drop down provided it associates your invoice with that company. Then when you select an invoice # on the invoice sheet, that company's information, such as company name and address, will automatically be populated on the invoice."]
[null,null,"Note:  If you assign the same number to more than one Invoice the entries will turn red to alert you to the duplication. "]
[null,"3.","On the invoice details sheet, enter the details for your invoice, such as an item description, item #, quantity (qty), and unit price. The invoice # drop down provides a list of invoices you entered on the invoices - main sheet to facilitate data entry. Similar to the company # in the previous step, the invoice # associates that detail item with a specific invoice. When you select an invoice # on the invoice sheet from the invoice # drop down, the related invoice detail items will appear for that invoice."]
[null,null,"Note: You are limited to 25 details items per invoice. If more than 25 items are added, all corresponding entries will turn red to alert you to this limitation. If you have more than 25 invoice items you will need to create a second invoice. "]
[null,"How do I add more customers, invoices, and invoice details?"]
[null,"The data for customers, invoices, and invoice details are stored in Excel tables. When you add a new row to a table, the newly added row will be formatted automatically and any calculations will be copied. To add new table rows do one of the following:"]
[null,"● ","If the table does not have a total row, start typing below the table and it will automatically expand when you press the enter or tab key"]
[null,"● ","Place your pointer in the last cell above the total row, then in the invoices table in the notes cell for the last invoice, press tab."]
[null,"● ","On the home tab, in the cells group, select insert, and then select table rows above or table rows below. "]
[null,"● ","In the bottom right corner of the table, place your mouse on the table sizing handle and drag down to increase the number of available table rows."]
[null,"How do I analyze my invoice details?"]
[null,"As noted in the introduction, after you have entered several invoices you can view a list of all invoices for a specific customer, project, a specified date interval, and much more. This type of analysis is accomplished using a filter which enables you to quickly narrow down a list of data. To access a filter on the customers, invoices, or invoice details tables, select a drop down arrow next to any table field name. A filter pane will display giving you a variety of filtering options. Here are a few filtering examples to help you get started:"]
[null,"● ","To view the total amount you've invoiced a specific customer: On the invoices - main sheet, to the right of the company # field, select the drop down arrow. In the filter pane, click select all to deselect all companies, select the desired company, and then select OK. "]
[null,null,"Tip: In the filter pane you can also type the customer name in the search text box to quickly search the available list."]
[null,"● ","To view all invoices for a specific customer and specific project(s): Start by filtering for your desired customer using the steps provided in the previous example. Then, to the right of project #, select the drop down arrow. In the filter pane, select the desired project or projects, and then select OK. "]
[null,"● ","To view all invoices for the previous month: On the invoices - main sheet, to the right of the invoice date field, select the drop down arrow, point to date filters, and then select last month."]
[null,"● ","To view all customers with the same area code: On the customers sheet, to the right of the phone field, select the drop down arrow. In the filter pane, click in the search text box, type the area code and then select OK. "]
[null,"Filter Tips"]
[null,"● ","If a table has a total row, such as customers and Invoices, the calculated totals will reflect only your filtered list."]
[null,"● ","Use multiple filters on a single field or across multiple fields to fine-tune your results."]
[null,"● ","To clear a single filter, select the drop down arrow for a previously filtered column and then select clear filter from <field name>."]
[null,"● ","To clear multiple filters at the same time, place your cell pointer in the table, on the home tab, in the editing group, select sort & filter, and then select clear."]

{"sheet":"Invoice","index":1,"n_rows":41,"n_cols":7,"rows_kept":41}
[null,"Arbitrage Financial"]
[]
[null,{"$f":"\"Invoice for: \"&IFERROR(VLOOKUP(rngInvoice,InvoicesMain[],4),\"\")","v":"Invoice for: Project 2"}]
[null,"Address:","456 East 78th Ave","Phone: ","321-654-0987","Email: ","arbitrage@interestingsite.com"]
[null,null,"Denver, CO 12345","Fax: ","321-654-7890","Website:"," interestingsite.com"]
[null,"Bill To:",{"$f":"IFERROR(VLOOKUP(VLOOKUP(rngInvoice,InvoicesMain[],2,FALSE),CustomerList[],3,TRUE),\"\")","v":"Contoso, Ltd"},"Phone: ",{"$f":"\"\"&IFERROR(VLOOKUP(VLOOKUP(rngInvoice,InvoicesMain[],2,FALSE),CustomerList[],9,FALSE),\"\")","v":"432-555-0189"},"Invoice #:","3-456-2"]
[null,null,{"$f":"IFERROR(IF((VLOOKUP(VLOOKUP(rngInvoice,InvoicesMain[],2,FALSE),CustomerList[],5,FALSE))=\"\",\"\",(VLOOKUP(VLOOKUP(rngInvoice,InvoicesMain[],2,FALSE),CustomerList[],5,FALSE))),\"\")","v":"567 Walnut Ln."},"Fax: ",{"$f":"\"\"&IFERROR(VLOOKUP(VLOOKUP(rngInvoice,InvoicesMain[],2,FALSE),CustomerList[],11,FALSE),\"\")","v":"432-555-0123"},"Invoice Date:",{"$f":"IFERROR(IF(VLOOKUP(rngInvoice,InvoicesMain[],3,FALSE)=\"\",\"\",VLOOKUP(rngInvoice,InvoicesMain[],3,FALSE)),\"\")","v":{"v":44897,"d":"4489700.00%"}}]
[null,null,{"$f":"IFERROR(VLOOKUP(VLOOKUP(rngInvoice,InvoicesMain[],2,FALSE),CustomerList[],6,FALSE)&\", \"& VLOOKUP(VLOOKUP(G6,InvoicesMain[],2,FALSE),CustomerList[],7,FALSE)&\" \"&VLOOKUP(VLOOKUP(G6,InvoicesMain[],2,FALSE),CustomerList[],8,FALSE),\"\")","v":"Moline, MO 098765"},"Email:",{"$f":"\"\"&IFERROR(VLOOKUP(VLOOKUP(rngInvoice,InvoicesMain[],2,FALSE),CustomerList[],10,FALSE),\"\")","v":"contoso@interestingsite.com"}]
[]
[null,"Item #","Description","Qty","Unit Price","Discount","Price"]
[null,{"$f":"IFERROR(INDEX(InvoiceDetails[],SMALL(IF(InvoiceDetails[Invoice '#]=rngInvoice,ROW(InvoiceDetails[])-ROW(InvoiceDetails[#Headers])), ROW(1:1)), MATCH($B$10, InvoiceDetails[#Headers], 0)),\"\")","v":"Z4567"},{"$f":"IFERROR(INDEX(InvoiceDetails[],SMALL(IF(InvoiceDetails[Invoice '#]=rngInvoice,ROW(InvoiceDetails[])-ROW(InvoiceDetails[#Headers])), ROW(1:1)), MATCH($C$10, InvoiceDetails[#Headers], 0)),\"\")","v":"Invoice 3-456-2 Data 1"},{"$f":"IFERROR(INDEX(InvoiceDetails[],SMALL(IF(InvoiceDetails[Invoice '#]=rngInvoice,ROW(InvoiceDetails[])-ROW(InvoiceDetails[#Headers])), ROW(1:1)), MATCH($D$10, InvoiceDetails[#Headers], 0)),\"\")","v":39},{"$f":"IFERROR(INDEX(InvoiceDetails[],SMALL(IF(InvoiceDetails[Invoice '#]=rngInvoice,ROW(InvoiceDetails[])-ROW(InvoiceDetails[#Headers])), ROW(1:1)), MATCH($E$10, InvoiceDetails[#Headers], 0)),\"\")","v":{"v":5,"d":"$5.00"}},{"$f":"IFERROR(INDEX(InvoiceDetails[],SMALL(IF(InvoiceDetails[Invoice '#]=rngInvoice,ROW(InvoiceDetails[])-ROW(InvoiceDetails[#Headers])), ROW(1:1)), MATCH($F$10, InvoiceDetails[#Headers], 0)),\"\")","v":0},{"$f":"IFERROR((D11*E11)-F11,\"\")","v":{"v":195,"d":"$195.00"}}]
[null,{"$f":"IFERROR(INDEX(InvoiceDetails[],SMALL(IF(InvoiceDetails[Invoice '#]=rngInvoice,ROW(InvoiceDetails[])-ROW(InvoiceDetails[#Headers])), ROW(4:4)), MATCH($B$10, InvoiceDetails[#Headers], 0)),\"\")","v":"Z4570"},{"$f":"IFERROR(INDEX(InvoiceDetails[],SMALL(IF(InvoiceDetails[Invoice '#]=rngInvoice,ROW(InvoiceDetails[])-ROW(InvoiceDetails[#Headers])), ROW(4:4)), MATCH($C$10, InvoiceDetails[#Headers], 0)),\"\")","v":"Invoice 3-456-2 Data 4"},{"$f":"IFERROR(INDEX(InvoiceDetails[],SMALL(IF(InvoiceDetails[Invoice '#]=rngInvoice,ROW(InvoiceDetails[])-ROW(InvoiceDetails[#Headers])), ROW(4:4)), MATCH($D$10, InvoiceDetails[#Headers], 0)),\"\")","v":40},{"$f":"IFERROR(INDEX(InvoiceDetails[],SMALL(IF(InvoiceDetails[Invoice '#]=rngInvoice,ROW(InvoiceDetails[])-ROW(InvoiceDetails[#Headers])), ROW(4:4)), MATCH($E$10, InvoiceDetails[#Headers], 0)),\"\")","v":{"v":7,"d":"7.00"}},{"$f":"IFERROR(INDEX(InvoiceDetails[],SMALL(IF(InvoiceDetails[Invoice '#]=rngInvoice,ROW(InvoiceDetails[])-ROW(InvoiceDetails[#Headers])), ROW(4:4)), MATCH($F$10, InvoiceDetails[#Headers], 0)),\"\")","v":0},{"v":280,"d":"280.00"}]
[null,{"$f":"IFERROR(INDEX(InvoiceDetails[],SMALL(IF(InvoiceDetails[Invoice '#]=rngInvoice,ROW(InvoiceDetails[])-ROW(InvoiceDetails[#Headers])), ROW(5:5)), MATCH($B$10, InvoiceDetails[#Headers], 0)),\"\")","v":"Z4571"},{"$f":"IFERROR(INDEX(InvoiceDetails[],SMALL(IF(InvoiceDetails[Invoice '#]=rngInvoice,ROW(InvoiceDetails[])-ROW(InvoiceDetails[#Headers])), ROW(5:5)), MATCH($C$10, InvoiceDetails[#Headers], 0)),\"\")","v":"Invoice 3-456-2 Data 5"},{"$f":"IFERROR(INDEX(InvoiceDetails[],SMALL(IF(InvoiceDetails[Invoice '#]=rngInvoice,ROW(InvoiceDetails[])-ROW(InvoiceDetails[#Headers])), ROW(5:5)), MATCH($D$10, InvoiceDetails[#Headers], 0)),\"\")","v":10},{"$f":"IFERROR(INDEX(InvoiceDetails[],SMALL(IF(InvoiceDetails[Invoice '#]=rngInvoice,ROW(InvoiceDetails[])-ROW(InvoiceDetails[#Headers])), ROW(5:5)), MATCH($E$10, InvoiceDetails[#Headers], 0)),\"\")","v":{"v":4,"d":"4.00"}},{"$f":"IFERROR(INDEX(InvoiceDetails[],SMALL(IF(InvoiceDetails[Invoice '#]=rngInvoice,ROW(InvoiceDetails[])-ROW(InvoiceDetails[#Headers])), ROW(5:5)), MATCH($F$10, InvoiceDetails[#Headers], 0)),\"\")","v":0},{"v":40,"d":"40.00"}]
[null,{"$f":"IFERROR(INDEX(InvoiceDetails[],SMALL(IF(InvoiceDetails[Invoice '#]=rngInvoice,ROW(InvoiceDetails[])-ROW(InvoiceDetails[#Headers])), ROW(6:6)), MATCH($B$10, InvoiceDetails[#Headers], 0)),\"\")","v":"Z4572"},{"$f":"IFERROR(INDEX(InvoiceDetails[],SMALL(IF(InvoiceDetails[Invoice '#]=rngInvoice,ROW(InvoiceDetails[])-ROW(InvoiceDetails[#Headers])), ROW(6:6)), MATCH($C$10, InvoiceDetails[#Headers], 0)),\"\")","v":"Invoice 3-456-2 Data 6"},{"$f":"IFERROR(INDEX(InvoiceDetails[],SMALL(IF(InvoiceDetails[Invoice '#]=rngInvoice,ROW(InvoiceDetails[])-ROW(InvoiceDetails[#Headers])), ROW(6:6)), MATCH($D$10, InvoiceDetails[#Headers], 0)),\"\")","v":5},{"$f":"IFERROR(INDEX(InvoiceDetails[],SMALL(IF(InvoiceDetails[Invoice '#]=rngInvoice,ROW(InvoiceDetails[])-ROW(InvoiceDetails[#Headers])), ROW(6:6)), MATCH($E$10, InvoiceDetails[#Headers], 0)),\"\")","v":{"v":8,"d":"8.00"}},{"$f":"IFERROR(INDEX(InvoiceDetails[],SMALL(IF(InvoiceDetails[Invoice '#]=rngInvoice,ROW(InvoiceDetails[])-ROW(InvoiceDetails[#Headers])), ROW(6:6)), MATCH($F$10, InvoiceDetails[#Headers], 0)),\"\")","v":0},{"v":40,"d":"40.00"}]
[null,{"$f":"IFERROR(INDEX(InvoiceDetails[],SMALL(IF(InvoiceDetails[Invoice '#]=rngInvoice,ROW(InvoiceDetails[])-ROW(InvoiceDetails[#Headers])), ROW(7:7)), MATCH($B$10, InvoiceDetails[#Headers], 0)),\"\")","v":"Z4573"},{"$f":"IFERROR(INDEX(InvoiceDetails[],SMALL(IF(InvoiceDetails[Invoice '#]=rngInvoice,ROW(InvoiceDetails[])-ROW(InvoiceDetails[#Headers])), ROW(7:7)), MATCH($C$10, InvoiceDetails[#Headers], 0)),\"\")","v":"Invoice 3-456-2 Data 7"},{"$f":"IFERROR(INDEX(InvoiceDetails[],SMALL(IF(InvoiceDetails[Invoice '#]=rngInvoice,ROW(InvoiceDetails[])-ROW(InvoiceDetails[#Headers])), ROW(7:7)), MATCH($D$10, InvoiceDetails[#Headers], 0)),\"\")","v":70},{"$f":"IFERROR(INDEX(InvoiceDetails[],SMALL(IF(InvoiceDetails[Invoice '#]=rngInvoice,ROW(InvoiceDetails[])-ROW(InvoiceDetails[#Headers])), ROW(7:7)), MATCH($E$10, InvoiceDetails[#Headers], 0)),\"\")","v":{"v":6,"d":"6.00"}},{"$f":"IFERROR(INDEX(InvoiceDetails[],SMALL(IF(InvoiceDetails[Invoice '#]=rngInvoice,ROW(InvoiceDetails[])-ROW(InvoiceDetails[#Headers])), ROW(7:7)), MATCH($F$10, InvoiceDetails[#Headers], 0)),\"\")","v":0},{"v":420,"d":"420.00"}]
[null,{"$f":"IFERROR(INDEX(InvoiceDetails[],SMALL(IF(InvoiceDetails[Invoice '#]=rngInvoice,ROW(InvoiceDetails[])-ROW(InvoiceDetails[#Headers])), ROW(8:8)), MATCH($B$10, InvoiceDetails[#Headers], 0)),\"\")","v":"Z4574"},{"$f":"IFERROR(INDEX(InvoiceDetails[],SMALL(IF(InvoiceDetails[Invoice '#]=rngInvoice,ROW(InvoiceDetails[])-ROW(InvoiceDetails[#Headers])), ROW(8:8)), MATCH($C$10, InvoiceDetails[#Headers], 0)),\"\")","v":"Invoice 3-456-2 Data 8"},{"$f":"IFERROR(INDEX(InvoiceDetails[],SMALL(IF(InvoiceDetails[Invoice '#]=rngInvoice,ROW(InvoiceDetails[])-ROW(InvoiceDetails[#Headers])), ROW(8:8)), MATCH($D$10, InvoiceDetails[#Headers], 0)),\"\")","v":25},{"$f":"IFERROR(INDEX(InvoiceDetails[],SMALL(IF(InvoiceDetails[Invoice '#]=rngInvoice,ROW(InvoiceDetails[])-ROW(InvoiceDetails[#Headers])), ROW(8:8)), MATCH($E$10, InvoiceDetails[#Headers], 0)),\"\")","v":{"v":4,"d":"4.00"}},{"$f":"IFERROR(INDEX(InvoiceDetails[],SMALL(IF(InvoiceDetails[Invoice '#]=rngInvoice,ROW(InvoiceDetails[])-ROW(InvoiceDetails[#Headers])), ROW(8:8)), MATCH($F$10, InvoiceDetails[#Headers], 0)),\"\")","v":0},{"v":100,"d":"100.00"}]
[null,{"$f":"IFERROR(INDEX(InvoiceDetails[],SMALL(IF(InvoiceDetails[Invoice '#]=rngInvoice,ROW(InvoiceDetails[])-ROW(InvoiceDetails[#Headers])), ROW(9:9)), MATCH($B$10, InvoiceDetails[#Headers], 0)),\"\")","v":"Z4575"},{"$f":"IFERROR(INDEX(InvoiceDetails[],SMALL(IF(InvoiceDetails[Invoice '#]=rngInvoice,ROW(InvoiceDetails[])-ROW(InvoiceDetails[#Headers])), ROW(9:9)), MATCH($C$10, InvoiceDetails[#Headers], 0)),\"\")","v":"Invoice 3-456-2 Data 9"},{"$f":"IFERROR(INDEX(InvoiceDetails[],SMALL(IF(InvoiceDetails[Invoice '#]=rngInvoice,ROW(InvoiceDetails[])-ROW(InvoiceDetails[#Headers])), ROW(9:9)), MATCH($D$10, InvoiceDetails[#Headers], 0)),\"\")","v":5},{"$f":"IFERROR(INDEX(InvoiceDetails[],SMALL(IF(InvoiceDetails[Invoice '#]=rngInvoice,ROW(InvoiceDetails[])-ROW(InvoiceDetails[#Headers])), ROW(9:9)), MATCH($E$10, InvoiceDetails[#Headers], 0)),\"\")","v":{"v":7,"d":"7.00"}},{"$f":"IFERROR(INDEX(InvoiceDetails[],SMALL(IF(InvoiceDetails[Invoice '#]=rngInvoice,ROW(InvoiceDetails[])-ROW(InvoiceDetails[#Headers])), ROW(9:9)), MATCH($F$10, InvoiceDetails[#Headers], 0)),\"\")","v":{"v":3,"d":"3.00"}},{"v":32,"d":"32.00"}]
[null,{"$f":"IFERROR(INDEX(InvoiceDetails[],SMALL(IF(InvoiceDetails[Invoice '#]=rngInvoice,ROW(InvoiceDetails[])-ROW(InvoiceDetails[#Headers])), ROW(10:10)), MATCH($B$10, InvoiceDetails[#Headers], 0)),\"\")","v":"Z4576"},{"$f":"IFERROR(INDEX(InvoiceDetails[],SMALL(IF(InvoiceDetails[Invoice '#]=rngInvoice,ROW(InvoiceDetails[])-ROW(InvoiceDetails[#Headers])), ROW(10:10)), MATCH($C$10, InvoiceDetails[#Headers], 0)),\"\")","v":"Invoice 3-456-2 Data 10"},{"$f":"IFERROR(INDEX(InvoiceDetails[],SMALL(IF(InvoiceDetails[Invoice '#]=rngInvoice,ROW(InvoiceDetails[])-ROW(InvoiceDetails[#Headers])), ROW(10:10)), MATCH($D$10, InvoiceDetails[#Headers], 0)),\"\")","v":80},{"$f":"IFERROR(INDEX(InvoiceDetails[],SMALL(IF(InvoiceDetails[Invoice '#]=rngInvoice,ROW(InvoiceDetails[])-ROW(InvoiceDetails[#Headers])), ROW(10:10)), MATCH($E$10, InvoiceDetails[#Headers], 0)),\"\")","v":{"v":1,"d":"1.00"}},{"$f":"IFERROR(INDEX(InvoiceDetails[],SMALL(IF(InvoiceDetails[Invoice '#]=rngInvoice,ROW(InvoiceDetails[])-ROW(InvoiceDetails[#Headers])), ROW(10:10)), MATCH($F$10, InvoiceDetails[#Headers], 0)),\"\")","v":0},{"v":80,"d":"80.00"}]
[null,{"$f":"IFERROR(INDEX(InvoiceDetails[],SMALL(IF(InvoiceDetails[Invoice '#]=rngInvoice,ROW(InvoiceDetails[])-ROW(InvoiceDetails[#Headers])), ROW(11:11)), MATCH($B$10, InvoiceDetails[#Headers], 0)),\"\")","v":"Z4577"},{"$f":"IFERROR(INDEX(InvoiceDetails[],SMALL(IF(InvoiceDetails[Invoice '#]=rngInvoice,ROW(InvoiceDetails[])-ROW(InvoiceDetails[#Headers])), ROW(11:11)), MATCH($C$10, InvoiceDetails[#Headers], 0)),\"\")","v":"Invoice 3-456-2 Data 11"},{"$f":"IFERROR(INDEX(InvoiceDetails[],SMALL(IF(InvoiceDetails[Invoice '#]=rngInvoice,ROW(InvoiceDetails[])-ROW(InvoiceDetails[#Headers])), ROW(11:11)), MATCH($D$10, InvoiceDetails[#Headers], 0)),\"\")","v":65},{"$f":"IFERROR(INDEX(InvoiceDetails[],SMALL(IF(InvoiceDetails[Invoice '#]=rngInvoice,ROW(InvoiceDetails[])-ROW(InvoiceDetails[#Headers])), ROW(11:11)), MATCH($E$10, InvoiceDetails[#Headers], 0)),\"\")","v":{"v":7,"d":"7.00"}},{"$f":"IFERROR(INDEX(InvoiceDetails[],SMALL(IF(InvoiceDetails[Invoice '#]=rngInvoice,ROW(InvoiceDetails[])-ROW(InvoiceDetails[#Headers])), ROW(11:11)), MATCH($F$10, InvoiceDetails[#Headers], 0)),\"\")","v":0},{"v":455,"d":"455.00"}]
[null,{"$f":"IFERROR(INDEX(InvoiceDetails[],SMALL(IF(InvoiceDetails[Invoice '#]=rngInvoice,ROW(InvoiceDetails[])-ROW(InvoiceDetails[#Headers])), ROW(12:12)), MATCH($B$10, InvoiceDetails[#Headers], 0)),\"\")","v":"Z4578"},{"$f":"IFERROR(INDEX(InvoiceDetails[],SMALL(IF(InvoiceDetails[Invoice '#]=rngInvoice,ROW(InvoiceDetails[])-ROW(InvoiceDetails[#Headers])), ROW(12:12)), MATCH($C$10, InvoiceDetails[#Headers], 0)),\"\")","v":"Invoice 3-456-2 Data 12"},{"$f":"IFERROR(INDEX(InvoiceDetails[],SMALL(IF(InvoiceDetails[Invoice '#]=rngInvoice,ROW(InvoiceDetails[])-ROW(InvoiceDetails[#Headers])), ROW(12:12)), MATCH($D$10, InvoiceDetails[#Headers], 0)),\"\")","v":44},{"$f":"IFERROR(INDEX(InvoiceDetails[],SMALL(IF(InvoiceDetails[Invoice '#]=rngInvoice,ROW(InvoiceDetails[])-ROW(InvoiceDetails[#Headers])), ROW(12:12)), MATCH($E$10, InvoiceDetails[#Headers], 0)),\"\")","v":{"v":1,"d":"1.00"}},{"$f":"IFERROR(INDEX(InvoiceDetails[],SMALL(IF(InvoiceDetails[Invoice '#]=rngInvoice,ROW(InvoiceDetails[])-ROW(InvoiceDetails[#Headers])), ROW(12:12)), MATCH($F$10, InvoiceDetails[#Headers], 0)),\"\")","v":0},{"v":44,"d":"44.00"}]
[null,{"$f":"IFERROR(INDEX(InvoiceDetails[],SMALL(IF(InvoiceDetails[Invoice '#]=rngInvoice,ROW(InvoiceDetails[])-ROW(InvoiceDetails[#Headers])), ROW(13:13)), MATCH($B$10, InvoiceDetails[#Headers], 0)),\"\")","v":""},{"$f":"IFERROR(INDEX(InvoiceDetails[],SMALL(IF(InvoiceDetails[Invoice '#]=rngInvoice,ROW(InvoiceDetails[])-ROW(InvoiceDetails[#Headers])), ROW(13:13)), MATCH($C$10, InvoiceDetails[#Headers], 0)),\"\")","v":""},{"$f":"IFERROR(INDEX(InvoiceDetails[],SMALL(IF(InvoiceDetails[Invoice '#]=rngInvoice,ROW(InvoiceDetails[])-ROW(InvoiceDetails[#Headers])), ROW(13:13)), MATCH($D$10, InvoiceDetails[#Headers], 0)),\"\")","v":""},{"$f":"IFERROR(INDEX(InvoiceDetails[],SMALL(IF(InvoiceDetails[Invoice '#]=rngInvoice,ROW(InvoiceDetails[])-ROW(InvoiceDetails[#Headers])), ROW(13:13)), MATCH($E$10, InvoiceDetails[#Headers], 0)),\"\")","v":""},{"$f":"IFERROR(INDEX(InvoiceDetails[],SMALL(IF(InvoiceDetails[Invoice '#]=rngInvoice,ROW(InvoiceDetails[])-ROW(InvoiceDetails[#Headers])), ROW(13:13)), MATCH($F$10, InvoiceDetails[#Headers], 0)),\"\")","v":""},""]
[null,{"$f":"IFERROR(INDEX(InvoiceDetails[],SMALL(IF(InvoiceDetails[Invoice '#]=rngInvoice,ROW(InvoiceDetails[])-ROW(InvoiceDetails[#Headers])), ROW(14:14)), MATCH($B$10, InvoiceDetails[#Headers], 0)),\"\")","v":""},{"$f":"IFERROR(INDEX(InvoiceDetails[],SMALL(IF(InvoiceDetails[Invoice '#]=rngInvoice,ROW(InvoiceDetails[])-ROW(InvoiceDetails[#Headers])), ROW(14:14)), MATCH($C$10, InvoiceDetails[#Headers], 0)),\"\")","v":""},{"$f":"IFERROR(INDEX(InvoiceDetails[],SMALL(IF(InvoiceDetails[Invoice '#]=rngInvoice,ROW(InvoiceDetails[])-ROW(InvoiceDetails[#Headers])), ROW(14:14)), MATCH($D$10, InvoiceDetails[#Headers], 0)),\"\")","v":""},{"$f":"IFERROR(INDEX(InvoiceDetails[],SMALL(IF(InvoiceDetails[Invoice '#]=rngInvoice,ROW(InvoiceDetails[])-ROW(InvoiceDetails[#Headers])), ROW(14:14)), MATCH($E$10, InvoiceDetails[#Headers], 0)),\"\")","v":""},{"$f":"IFERROR(INDEX(InvoiceDetails[],SMALL(IF(InvoiceDetails[Invoice '#]=rngInvoice,ROW(InvoiceDetails[])-ROW(InvoiceDetails[#Headers])), ROW(14:14)), MATCH($F$10, InvoiceDetails[#Headers], 0)),\"\")","v":""},""]
[null,{"$f":"IFERROR(INDEX(InvoiceDetails[],SMALL(IF(InvoiceDetails[Invoice '#]=rngInvoice,ROW(InvoiceDetails[])-ROW(InvoiceDetails[#Headers])), ROW(15:15)), MATCH($B$10, InvoiceDetails[#Headers], 0)),\"\")","v":""},{"$f":"IFERROR(INDEX(InvoiceDetails[],SMALL(IF(InvoiceDetails[Invoice '#]=rngInvoice,ROW(InvoiceDetails[])-ROW(InvoiceDetails[#Headers])), ROW(15:15)), MATCH($C$10, InvoiceDetails[#Headers], 0)),\"\")","v":""},{"$f":"IFERROR(INDEX(InvoiceDetails[],SMALL(IF(InvoiceDetails[Invoice '#]=rngInvoice,ROW(InvoiceDetails[])-ROW(InvoiceDetails[#Headers])), ROW(15:15)), MATCH($D$10, InvoiceDetails[#Headers], 0)),\"\")","v":""},{"$f":"IFERROR(INDEX(InvoiceDetails[],SMALL(IF(InvoiceDetails[Invoice '#]=rngInvoice,ROW(InvoiceDetails[])-ROW(InvoiceDetails[#Headers])), ROW(15:15)), MATCH($E$10, InvoiceDetails[#Headers], 0)),\"\")","v":""},{"$f":"IFERROR(INDEX(InvoiceDetails[],SMALL(IF(InvoiceDetails[Invoice '#]=rngInvoice,ROW(InvoiceDetails[])-ROW(InvoiceDetails[#Headers])), ROW(15:15)), MATCH($F$10, InvoiceDetails[#Headers], 0)),\"\")","v":""},""]
[null,{"$f":"IFERROR(INDEX(InvoiceDetails[],SMALL(IF(InvoiceDetails[Invoice '#]=rngInvoice,ROW(InvoiceDetails[])-ROW(InvoiceDetails[#Headers])), ROW(16:16)), MATCH($B$10, InvoiceDetails[#Headers], 0)),\"\")","v":""},{"$f":"IFERROR(INDEX(InvoiceDetails[],SMALL(IF(InvoiceDetails[Invoice '#]=rngInvoice,ROW(InvoiceDetails[])-ROW(InvoiceDetails[#Headers])), ROW(16:16)), MATCH($C$10, InvoiceDetails[#Headers], 0)),\"\")","v":""},{"$f":"IFERROR(INDEX(InvoiceDetails[],SMALL(IF(InvoiceDetails[Invoice '#]=rngInvoice,ROW(InvoiceDetails[])-ROW(InvoiceDetails[#Headers])), ROW(16:16)), MATCH($D$10, InvoiceDetails[#Headers], 0)),\"\")","v":""},{"$f":"IFERROR(INDEX(InvoiceDetails[],SMALL(IF(InvoiceDetails[Invoice '#]=rngInvoice,ROW(InvoiceDetails[])-ROW(InvoiceDetails[#Headers])), ROW(16:16)), MATCH($E$10, InvoiceDetails[#Headers], 0)),\"\")","v":""},{"$f":"IFERROR(INDEX(InvoiceDetails[],SMALL(IF(InvoiceDetails[Invoice '#]=rngInvoice,ROW(InvoiceDetails[])-ROW(InvoiceDetails[#Headers])), ROW(16:16)), MATCH($F$10, InvoiceDetails[#Headers], 0)),\"\")","v":""},""]
[null,{"$f":"IFERROR(INDEX(InvoiceDetails[],SMALL(IF(InvoiceDetails[Invoice '#]=rngInvoice,ROW(InvoiceDetails[])-ROW(InvoiceDetails[#Headers])), ROW(17:17)), MATCH($B$10, InvoiceDetails[#Headers], 0)),\"\")","v":""},{"$f":"IFERROR(INDEX(InvoiceDetails[],SMALL(IF(InvoiceDetails[Invoice '#]=rngInvoice,ROW(InvoiceDetails[])-ROW(InvoiceDetails[#Headers])), ROW(17:17)), MATCH($C$10, InvoiceDetails[#Headers], 0)),\"\")","v":""},{"$f":"IFERROR(INDEX(InvoiceDetails[],SMALL(IF(InvoiceDetails[Invoice '#]=rngInvoice,ROW(InvoiceDetails[])-ROW(InvoiceDetails[#Headers])), ROW(17:17)), MATCH($D$10, InvoiceDetails[#Headers], 0)),\"\")","v":""},{"$f":"IFERROR(INDEX(InvoiceDetails[],SMALL(IF(InvoiceDetails[Invoice '#]=rngInvoice,ROW(InvoiceDetails[])-ROW(InvoiceDetails[#Headers])), ROW(17:17)), MATCH($E$10, InvoiceDetails[#Headers], 0)),\"\")","v":""},{"$f":"IFERROR(INDEX(InvoiceDetails[],SMALL(IF(InvoiceDetails[Invoice '#]=rngInvoice,ROW(InvoiceDetails[])-ROW(InvoiceDetails[#Headers])), ROW(17:17)), MATCH($F$10, InvoiceDetails[#Headers], 0)),\"\")","v":""},""]
[null,{"$f":"IFERROR(INDEX(InvoiceDetails[],SMALL(IF(InvoiceDetails[Invoice '#]=rngInvoice,ROW(InvoiceDetails[])-ROW(InvoiceDetails[#Headers])), ROW(18:18)), MATCH($B$10, InvoiceDetails[#Headers], 0)),\"\")","v":""},{"$f":"IFERROR(INDEX(InvoiceDetails[],SMALL(IF(InvoiceDetails[Invoice '#]=rngInvoice,ROW(InvoiceDetails[])-ROW(InvoiceDetails[#Headers])), ROW(18:18)), MATCH($C$10, InvoiceDetails[#Headers], 0)),\"\")","v":""},{"$f":"IFERROR(INDEX(InvoiceDetails[],SMALL(IF(InvoiceDetails[Invoice '#]=rngInvoice,ROW(InvoiceDetails[])-ROW(InvoiceDetails[#Headers])), ROW(18:18)), MATCH($D$10, InvoiceDetails[#Headers], 0)),\"\")","v":""},{"$f":"IFERROR(INDEX(InvoiceDetails[],SMALL(IF(InvoiceDetails[Invoice '#]=rngInvoice,ROW(InvoiceDetails[])-ROW(InvoiceDetails[#Headers])), ROW(18:18)), MATCH($E$10, InvoiceDetails[#Headers], 0)),\"\")","v":""},{"$f":"IFERROR(INDEX(InvoiceDetails[],SMALL(IF(InvoiceDetails[Invoice '#]=rngInvoice,ROW(InvoiceDetails[])-ROW(InvoiceDetails[#Headers])), ROW(18:18)), MATCH($F$10, InvoiceDetails[#Headers], 0)),\"\")","v":""},""]
[null,{"$f":"IFERROR(INDEX(InvoiceDetails[],SMALL(IF(InvoiceDetails[Invoice '#]=rngInvoice,ROW(InvoiceDetails[])-ROW(InvoiceDetails[#Headers])), ROW(19:19)), MATCH($B$10, InvoiceDetails[#Headers], 0)),\"\")","v":""},{"$f":"IFERROR(INDEX(InvoiceDetails[],SMALL(IF(InvoiceDetails[Invoice '#]=rngInvoice,ROW(InvoiceDetails[])-ROW(InvoiceDetails[#Headers])), ROW(19:19)), MATCH($C$10, InvoiceDetails[#Headers], 0)),\"\")","v":""},{"$f":"IFERROR(INDEX(InvoiceDetails[],SMALL(IF(InvoiceDetails[Invoice '#]=rngInvoice,ROW(InvoiceDetails[])-ROW(InvoiceDetails[#Headers])), ROW(19:19)), MATCH($D$10, InvoiceDetails[#Headers], 0)),\"\")","v":""},{"$f":"IFERROR(INDEX(InvoiceDetails[],SMALL(IF(InvoiceDetails[Invoice '#]=rngInvoice,ROW(InvoiceDetails[])-ROW(InvoiceDetails[#Headers])), ROW(19:19)), MATCH($E$10, InvoiceDetails[#Headers], 0)),\"\")","v":""},{"$f":"IFERROR(INDEX(InvoiceDetails[],SMALL(IF(InvoiceDetails[Invoice '#]=rngInvoice,ROW(InvoiceDetails[])-ROW(InvoiceDetails[#Headers])), ROW(19:19)), MATCH($F$10, InvoiceDetails[#Headers], 0)),\"\")","v":""},""]
[null,{"$f":"IFERROR(INDEX(InvoiceDetails[],SMALL(IF(InvoiceDetails[Invoice '#]=rngInvoice,ROW(InvoiceDetails[])-ROW(InvoiceDetails[#Headers])), ROW(20:20)), MATCH($B$10, InvoiceDetails[#Headers], 0)),\"\")","v":""},{"$f":"IFERROR(INDEX(InvoiceDetails[],SMALL(IF(InvoiceDetails[Invoice '#]=rngInvoice,ROW(InvoiceDetails[])-ROW(InvoiceDetails[#Headers])), ROW(20:20)), MATCH($C$10, InvoiceDetails[#Headers], 0)),\"\")","v":""},{"$f":"IFERROR(INDEX(InvoiceDetails[],SMALL(IF(InvoiceDetails[Invoice '#]=rngInvoice,ROW(InvoiceDetails[])-ROW(InvoiceDetails[#Headers])), ROW(20:20)), MATCH($D$10, InvoiceDetails[#Headers], 0)),\"\")","v":""},{"$f":"IFERROR(INDEX(InvoiceDetails[],SMALL(IF(InvoiceDetails[Invoice '#]=rngInvoice,ROW(InvoiceDetails[])-ROW(InvoiceDetails[#Headers])), ROW(20:20)), MATCH($E$10, InvoiceDetails[#Headers], 0)),\"\")","v":""},{"$f":"IFERROR(INDEX(InvoiceDetails[],SMALL(IF(InvoiceDetails[Invoice '#]=rngInvoice,ROW(InvoiceDetails[])-ROW(InvoiceDetails[#Headers])), ROW(20:20)), MATCH($F$10, InvoiceDetails[#Headers], 0)),\"\")","v":""},""]
[null,{"$f":"IFERROR(INDEX(InvoiceDetails[],SMALL(IF(InvoiceDetails[Invoice '#]=rngInvoice,ROW(InvoiceDetails[])-ROW(InvoiceDetails[#Headers])), ROW(21:21)), MATCH($B$10, InvoiceDetails[#Headers], 0)),\"\")","v":""},{"$f":"IFERROR(INDEX(InvoiceDetails[],SMALL(IF(InvoiceDetails[Invoice '#]=rngInvoice,ROW(InvoiceDetails[])-ROW(InvoiceDetails[#Headers])), ROW(21:21)), MATCH($C$10, InvoiceDetails[#Headers], 0)),\"\")","v":""},{"$f":"IFERROR(INDEX(InvoiceDetails[],SMALL(IF(InvoiceDetails[Invoice '#]=rngInvoice,ROW(InvoiceDetails[])-ROW(InvoiceDetails[#Headers])), ROW(21:21)), MATCH($D$10, InvoiceDetails[#Headers], 0)),\"\")","v":""},{"$f":"IFERROR(INDEX(InvoiceDetails[],SMALL(IF(InvoiceDetails[Invoice '#]=rngInvoice,ROW(InvoiceDetails[])-ROW(InvoiceDetails[#Headers])), ROW(21:21)), MATCH($E$10, InvoiceDetails[#Headers], 0)),\"\")","v":""},{"$f":"IFERROR(INDEX(InvoiceDetails[],SMALL(IF(InvoiceDetails[Invoice '#]=rngInvoice,ROW(InvoiceDetails[])-ROW(InvoiceDetails[#Headers])), ROW(21:21)), MATCH($F$10, InvoiceDetails[#Headers], 0)),\"\")","v":""},""]
[null,{"$f":"IFERROR(INDEX(InvoiceDetails[],SMALL(IF(InvoiceDetails[Invoice '#]=rngInvoice,ROW(InvoiceDetails[])-ROW(InvoiceDetails[#Headers])), ROW(22:22)), MATCH($B$10, InvoiceDetails[#Headers], 0)),\"\")","v":""},{"$f":"IFERROR(INDEX(InvoiceDetails[],SMALL(IF(InvoiceDetails[Invoice '#]=rngInvoice,ROW(InvoiceDetails[])-ROW(InvoiceDetails[#Headers])), ROW(22:22)), MATCH($C$10, InvoiceDetails[#Headers], 0)),\"\")","v":""},{"$f":"IFERROR(INDEX(InvoiceDetails[],SMALL(IF(InvoiceDetails[Invoice '#]=rngInvoice,ROW(InvoiceDetails[])-ROW(InvoiceDetails[#Headers])), ROW(22:22)), MATCH($D$10, InvoiceDetails[#Headers], 0)),\"\")","v":""},{"$f":"IFERROR(INDEX(InvoiceDetails[],SMALL(IF(InvoiceDetails[Invoice '#]=rngInvoice,ROW(InvoiceDetails[])-ROW(InvoiceDetails[#Headers])), ROW(22:22)), MATCH($E$10, InvoiceDetails[#Headers], 0)),\"\")","v":""},{"$f":"IFERROR(INDEX(InvoiceDetails[],SMALL(IF(InvoiceDetails[Invoice '#]=rngInvoice,ROW(InvoiceDetails[])-ROW(InvoiceDetails[#Headers])), ROW(22:22)), MATCH($F$10, InvoiceDetails[#Headers], 0)),\"\")","v":""},""]
[null,{"$f":"IFERROR(INDEX(InvoiceDetails[],SMALL(IF(InvoiceDetails[Invoice '#]=rngInvoice,ROW(InvoiceDetails[])-ROW(InvoiceDetails[#Headers])), ROW(23:23)), MATCH($B$10, InvoiceDetails[#Headers], 0)),\"\")","v":""},{"$f":"IFERROR(INDEX(InvoiceDetails[],SMALL(IF(InvoiceDetails[Invoice '#]=rngInvoice,ROW(InvoiceDetails[])-ROW(InvoiceDetails[#Headers])), ROW(23:23)), MATCH($C$10, InvoiceDetails[#Headers], 0)),\"\")","v":""},{"$f":"IFERROR(INDEX(InvoiceDetails[],SMALL(IF(InvoiceDetails[Invoice '#]=rngInvoice,ROW(InvoiceDetails[])-ROW(InvoiceDetails[#Headers])), ROW(23:23)), MATCH($D$10, InvoiceDetails[#Headers], 0)),\"\")","v":""},{"$f":"IFERROR(INDEX(InvoiceDetails[],SMALL(IF(InvoiceDetails[Invoice '#]=rngInvoice,ROW(InvoiceDetails[])-ROW(InvoiceDetails[#Headers])), ROW(23:23)), MATCH($E$10, InvoiceDetails[#Headers], 0)),\"\")","v":""},{"$f":"IFERROR(INDEX(InvoiceDetails[],SMALL(IF(InvoiceDetails[Invoice '#]=rngInvoice,ROW(InvoiceDetails[])-ROW(InvoiceDetails[#Headers])), ROW(23:23)), MATCH($F$10, InvoiceDetails[#Headers], 0)),\"\")","v":""},""]
[null,{"$f":"IFERROR(INDEX(InvoiceDetails[],SMALL(IF(InvoiceDetails[Invoice '#]=rngInvoice,ROW(InvoiceDetails[])-ROW(InvoiceDetails[#Headers])), ROW(24:24)), MATCH($B$10, InvoiceDetails[#Headers], 0)),\"\")","v":""},{"$f":"IFERROR(INDEX(InvoiceDetails[],SMALL(IF(InvoiceDetails[Invoice '#]=rngInvoice,ROW(InvoiceDetails[])-ROW(InvoiceDetails[#Headers])), ROW(24:24)), MATCH($C$10, InvoiceDetails[#Headers], 0)),\"\")","v":""},{"$f":"IFERROR(INDEX(InvoiceDetails[],SMALL(IF(InvoiceDetails[Invoice '#]=rngInvoice,ROW(InvoiceDetails[])-ROW(InvoiceDetails[#Headers])), ROW(24:24)), MATCH($D$10, InvoiceDetails[#Headers], 0)),\"\")","v":""},{"$f":"IFERROR(INDEX(InvoiceDetails[],SMALL(IF(InvoiceDetails[Invoice '#]=rngInvoice,ROW(InvoiceDetails[])-ROW(InvoiceDetails[#Headers])), ROW(24:24)), MATCH($E$10, InvoiceDetails[#Headers], 0)),\"\")","v":""},{"$f":"IFERROR(INDEX(InvoiceDetails[],SMALL(IF(InvoiceDetails[Invoice '#]=rngInvoice,ROW(InvoiceDetails[])-ROW(InvoiceDetails[#Headers])), ROW(24:24)), MATCH($F$10, InvoiceDetails[#Headers], 0)),\"\")","v":""},""]
[null,{"$f":"IFERROR(INDEX(InvoiceDetails[],SMALL(IF(InvoiceDetails[Invoice '#]=rngInvoice,ROW(InvoiceDetails[])-ROW(InvoiceDetails[#Headers])), ROW(25:25)), MATCH($B$10, InvoiceDetails[#Headers], 0)),\"\")","v":""},{"$f":"IFERROR(INDEX(InvoiceDetails[],SMALL(IF(InvoiceDetails[Invoice '#]=rngInvoice,ROW(InvoiceDetails[])-ROW(InvoiceDetails[#Headers])), ROW(25:25)), MATCH($C$10, InvoiceDetails[#Headers], 0)),\"\")","v":""},{"$f":"IFERROR(INDEX(InvoiceDetails[],SMALL(IF(InvoiceDetails[Invoice '#]=rngInvoice,ROW(InvoiceDetails[])-ROW(InvoiceDetails[#Headers])), ROW(25:25)), MATCH($D$10, InvoiceDetails[#Headers], 0)),\"\")","v":""},{"$f":"IFERROR(INDEX(InvoiceDetails[],SMALL(IF(InvoiceDetails[Invoice '#]=rngInvoice,ROW(InvoiceDetails[])-ROW(InvoiceDetails[#Headers])), ROW(25:25)), MATCH($E$10, InvoiceDetails[#Headers], 0)),\"\")","v":""},{"$f":"IFERROR(INDEX(InvoiceDetails[],SMALL(IF(InvoiceDetails[Invoice '#]=rngInvoice,ROW(InvoiceDetails[])-ROW(InvoiceDetails[#Headers])), ROW(25:25)), MATCH($F$10, InvoiceDetails[#Headers], 0)),\"\")","v":""},""]
[null,{"$f":"IFERROR(INDEX(InvoiceDetails[],SMALL(IF(InvoiceDetails[Invoice '#]=rngInvoice,ROW(InvoiceDetails[])-ROW(InvoiceDetails[#Headers])), ROW(26:26)), MATCH($B$10, InvoiceDetails[#Headers], 0)),\"\")","v":""},{"$f":"IFERROR(INDEX(InvoiceDetails[],SMALL(IF(InvoiceDetails[Invoice '#]=rngInvoice,ROW(InvoiceDetails[])-ROW(InvoiceDetails[#Headers])), ROW(26:26)), MATCH($C$10, InvoiceDetails[#Headers], 0)),\"\")","v":""},{"$f":"IFERROR(INDEX(InvoiceDetails[],SMALL(IF(InvoiceDetails[Invoice '#]=rngInvoice,ROW(InvoiceDetails[])-ROW(InvoiceDetails[#Headers])), ROW(26:26)), MATCH($D$10, InvoiceDetails[#Headers], 0)),\"\")","v":""},{"$f":"IFERROR(INDEX(InvoiceDetails[],SMALL(IF(InvoiceDetails[Invoice '#]=rngInvoice,ROW(InvoiceDetails[])-ROW(InvoiceDetails[#Headers])), ROW(26:26)), MATCH($E$10, InvoiceDetails[#Headers], 0)),\"\")","v":""},{"$f":"IFERROR(INDEX(InvoiceDetails[],SMALL(IF(InvoiceDetails[Invoice '#]=rngInvoice,ROW(InvoiceDetails[])-ROW(InvoiceDetails[#Headers])), ROW(26:26)), MATCH($F$10, InvoiceDetails[#Headers], 0)),\"\")","v":""},""]
[null,{"$f":"IFERROR(INDEX(InvoiceDetails[],SMALL(IF(InvoiceDetails[Invoice '#]=rngInvoice,ROW(InvoiceDetails[])-ROW(InvoiceDetails[#Headers])), ROW(27:27)), MATCH($B$10, InvoiceDetails[#Headers], 0)),\"\")","v":""},{"$f":"IFERROR(INDEX(InvoiceDetails[],SMALL(IF(InvoiceDetails[Invoice '#]=rngInvoice,ROW(InvoiceDetails[])-ROW(InvoiceDetails[#Headers])), ROW(27:27)), MATCH($C$10, InvoiceDetails[#Headers], 0)),\"\")","v":""},{"$f":"IFERROR(INDEX(InvoiceDetails[],SMALL(IF(InvoiceDetails[Invoice '#]=rngInvoice,ROW(InvoiceDetails[])-ROW(InvoiceDetails[#Headers])), ROW(27:27)), MATCH($D$10, InvoiceDetails[#Headers], 0)),\"\")","v":""},{"$f":"IFERROR(INDEX(InvoiceDetails[],SMALL(IF(InvoiceDetails[Invoice '#]=rngInvoice,ROW(InvoiceDetails[])-ROW(InvoiceDetails[#Headers])), ROW(27:27)), MATCH($E$10, InvoiceDetails[#Headers], 0)),\"\")","v":""},{"$f":"IFERROR(INDEX(InvoiceDetails[],SMALL(IF(InvoiceDetails[Invoice '#]=rngInvoice,ROW(InvoiceDetails[])-ROW(InvoiceDetails[#Headers])), ROW(27:27)), MATCH($F$10, InvoiceDetails[#Headers], 0)),\"\")","v":""},""]
[{"$nulls":5},"Invoice Subtotal",{"$f":"SUM(ProjectInvoice[Price])","v":{"v":1686,"d":"$1,686.00"}}]
[{"$nulls":5},"Tax Rate",{"$f":"VLOOKUP(rngInvoice,InvoicesMain[],5)","v":{"v":0.0875,"d":"8.75%"}}]
[{"$nulls":5},"Sales Tax",{"$f":"G36*G37","v":{"v":147.52499999999998,"d":"147.53"}}]
[{"$nulls":5},"Other",{"$f":"VLOOKUP(rngInvoice,InvoicesMain[],6)","v":0}]
[null,{"$f":"\"Make all checks payable to \"&CompanyName&\".\"","v":"Make all checks payable to Arbitrage Financial."},{"$nulls":3},"Deposit Received",{"$f":"VLOOKUP(rngInvoice,InvoicesMain[],7)","v":0}]
[null,"Total due in <#> days. Overdue accounts subject to a service charge of <#>% per month.",{"$nulls":3},"TOTAL",{"$f":"(G36+G38+G39)-G40","v":{"v":1833.525,"d":"$1,833.53"}}]

{"sheet":"Customers","index":2,"n_rows":6,"n_cols":12,"rows_kept":6,"merged":[[0,2,0,11],[1,2,1,11]]}
[null,null,"Customers"]
[]
[null,"Lookup","Company #","Company name","Contact name","Address","City","State","ZIP Code","Phone","Email","Fax"]
[null,{"$f":"C4& \" - \"&D4","v":"1 - Tailspin Toys "},1,"Tailspin Toys ","Robert Lyon","345 Cherry St.","Albany","SD","123456","432-555-0178","tailspin@interestingsite.com","432-555-0187"]
[null,"2 - Contoso, Ltd",2,"Contoso, Ltd","Sanjay Patel","567 Walnut Ln.","Moline","MO","098765","432-555-0189","contoso@interestingsite.com","432-555-0123"]
[null,"Total",{"$f":"\"Total Customers: \"&SUBTOTAL(103,CustomerList[Company '#])","v":"Total Customers: 2"}]

{"sheet":"Invoices - main","index":3,"n_rows":6,"n_cols":11,"rows_kept":6,"merged":[[0,1,0,10],[1,1,1,10]]}
[null,"Invoices"]
[]
[null,"Invoice #","Company","Invoice date","Project description","Tax rate","Other","Deposit","Detail total","Invoice total","Notes"]
[null,"3-456-1","1 - Tailspin Toys ",{"$f":"TODAY()","v":{"v":44887,"d":"4488700.00%"}},"Project 1",{"v":0.0875,"d":"8.75%"},{"v":100,"d":"$100.00"},{"v":100,"d":"$100.00"},{"$f":"SUMIF(InvoiceDetails[Invoice '#],\"=\"&InvoicesMain[[#This Row],[Invoice '#]],InvoiceDetails[Total])","v":{"v":5200,"d":"$5,200.00"}},{"$f":"(InvoicesMain[[#This Row],[Detail total]]*(1+InvoicesMain[[#This Row],[Tax rate]]))+InvoicesMain[[#This Row],[Other]]-InvoicesMain[[#This Row],[Deposit]]","v":{"v":5654.999999999999,"d":"$5,655.00"}}]
[null,"3-456-2","2 - Contoso, Ltd",{"$f":"TODAY()+10","v":{"v":44897,"d":"4489700.00%"}},"Project 2",{"v":0.0875,"d":"8.75%"},null,null,{"$f":"SUMIF(InvoiceDetails[Invoice '#],\"=\"&InvoicesMain[[#This Row],[Invoice '#]],InvoiceDetails[Total])","v":{"v":2014,"d":"$2,014.00"}},{"$f":"(InvoicesMain[[#This Row],[Detail total]]*(1+InvoicesMain[[#This Row],[Tax rate]]))+InvoicesMain[[#This Row],[Other]]-InvoicesMain[[#This Row],[Deposit]]","v":{"v":2190.225,"d":"$2,190.23"}}]
[null,"Totals",{"$f":"\"Total Invoices: \"&SUBTOTAL(103,InvoicesMain[Invoice '#])","v":"Total Invoices: 2"},{"$nulls":3},{"$f":"SUBTOTAL(109,InvoicesMain[Other])","v":{"v":100,"d":"$100.00"}},{"$f":"SUBTOTAL(109,InvoicesMain[Deposit])","v":{"v":100,"d":"$100.00"}},{"$f":"SUBTOTAL(109,InvoicesMain[Detail total])","v":{"v":7214,"d":"$7,214.00"}},{"$f":"SUBTOTAL(109,InvoicesMain[Invoice total])","v":{"v":7845.2249999999985,"d":"$7,845.23"}}]

{"sheet":"Invoice details","index":4,"n_rows":40,"n_cols":8,"rows_kept":40,"merged":[[0,1,0,7],[1,1,1,7]]}
[null,"Invoice Details"]
[]
[null,"Description","Invoice #","Item #","Qty","Unit price","Discount","Total"]
[null,"Invoice 3-456-1 Data 1","3-456-1",1,1,{"v":1,"d":"$1.00"},{"v":1,"d":"$1.00"},{"$f":"(InvoiceDetails[[#This Row],[Qty]]*InvoiceDetails[[#This Row],[Unit price]])-InvoiceDetails[[#This Row],[Discount]]","v":{"v":0,"d":"$0.00"}}]
[null,"Invoice 3-456-1 Data 2","3-456-1",2,2,{"v":2,"d":"$2.00"},{"v":2,"d":"$2.00"},{"$f":"(InvoiceDetails[[#This Row],[Qty]]*InvoiceDetails[[#This Row],[Unit price]])-InvoiceDetails[[#This Row],[Discount]]","v":{"v":2,"d":"$2.00"}}]
[null,"Invoice 3-456-1 Data 3","3-456-1",3,3,{"v":3,"d":"$3.00"},{"v":3,"d":"$3.00"},{"$f":"(InvoiceDetails[[#This Row],[Qty]]*InvoiceDetails[[#This Row],[Unit price]])-InvoiceDetails[[#This Row],[Discount]]","v":{"v":6,"d":"$6.00"}}]
[null,"Invoice 3-456-1 Data 4","3-456-1",4,4,{"v":4,"d":"$4.00"},{"v":4,"d":"$4.00"},{"$f":"(InvoiceDetails[[#This Row],[Qty]]*InvoiceDetails[[#This Row],[Unit price]])-InvoiceDetails[[#This Row],[Discount]]","v":{"v":12,"d":"$12.00"}}]
[null,"Invoice 3-456-1 Data 5","3-456-1",5,5,{"v":5,"d":"$5.00"},{"v":5,"d":"$5.00"},{"$f":"(InvoiceDetails[[#This Row],[Qty]]*InvoiceDetails[[#This Row],[Unit price]])-InvoiceDetails[[#This Row],[Discount]]","v":{"v":20,"d":"$20.00"}}]
[null,"Invoice 3-456-1 Data 6","3-456-1",6,6,{"v":6,"d":"$6.00"},{"v":6,"d":"$6.00"},{"$f":"(InvoiceDetails[[#This Row],[Qty]]*InvoiceDetails[[#This Row],[Unit price]])-InvoiceDetails[[#This Row],[Discount]]","v":{"v":30,"d":"$30.00"}}]
[null,"Invoice 3-456-1 Data 7","3-456-1",7,7,{"v":7,"d":"$7.00"},{"v":7,"d":"$7.00"},{"$f":"(InvoiceDetails[[#This Row],[Qty]]*InvoiceDetails[[#This Row],[Unit price]])-InvoiceDetails[[#This Row],[Discount]]","v":{"v":42,"d":"$42.00"}}]
[null,"Invoice 3-456-1 Data 8","3-456-1",8,8,{"v":8,"d":"$8.00"},{"v":8,"d":"$8.00"},{"$f":"(InvoiceDetails[[#This Row],[Qty]]*InvoiceDetails[[#This Row],[Unit price]])-InvoiceDetails[[#This Row],[Discount]]","v":{"v":56,"d":"$56.00"}}]
[null,"Invoice 3-456-1 Data 9","3-456-1",9,9,{"v":9,"d":"$9.00"},{"v":9,"d":"$9.00"},{"$f":"(InvoiceDetails[[#This Row],[Qty]]*InvoiceDetails[[#This Row],[Unit price]])-InvoiceDetails[[#This Row],[Discount]]","v":{"v":72,"d":"$72.00"}}]
[null,"Invoice 3-456-1 Data 10","3-456-1",10,10,{"v":10,"d":"$10.00"},{"v":10,"d":"$10.00"},{"$f":"(InvoiceDetails[[#This Row],[Qty]]*InvoiceDetails[[#This Row],[Unit price]])-InvoiceDetails[[#This Row],[Discount]]","v":{"v":90,"d":"$90.00"}}]
[null,"Invoice 3-456-1 Data 11","3-456-1",11,11,{"v":11,"d":"$11.00"},{"v":11,"d":"$11.00"},{"$f":"(InvoiceDetails[[#This Row],[Qty]]*InvoiceDetails[[#This Row],[Unit price]])-InvoiceDetails[[#This Row],[Discount]]","v":{"v":110,"d":"$110.00"}}]
[null,"Invoice 3-456-1 Data 12","3-456-1",12,12,{"v":12,"d":"$12.00"},{"v":12,"d":"$12.00"},{"$f":"(InvoiceDetails[[#This Row],[Qty]]*InvoiceDetails[[#This Row],[Unit price]])-InvoiceDetails[[#This Row],[Discount]]","v":{"v":132,"d":"$132.00"}}]
[null,"Invoice 3-456-1 Data 13","3-456-1",13,13,{"v":13,"d":"$13.00"},{"v":13,"d":"$13.00"},{"$f":"(InvoiceDetails[[#This Row],[Qty]]*InvoiceDetails[[#This Row],[Unit price]])-InvoiceDetails[[#This Row],[Discount]]","v":{"v":156,"d":"$156.00"}}]
[null,"Invoice 3-456-1 Data 14","3-456-1",14,14,{"v":14,"d":"$14.00"},{"v":14,"d":"$14.00"},{"$f":"(InvoiceDetails[[#This Row],[Qty]]*InvoiceDetails[[#This Row],[Unit price]])-InvoiceDetails[[#This Row],[Discount]]","v":{"v":182,"d":"$182.00"}}]
[null,"Invoice 3-456-1 Data 15","3-456-1",15,15,{"v":15,"d":"$15.00"},{"v":15,"d":"$15.00"},{"$f":"(InvoiceDetails[[#This Row],[Qty]]*InvoiceDetails[[#This Row],[Unit price]])-InvoiceDetails[[#This Row],[Discount]]","v":{"v":210,"d":"$210.00"}}]
[null,"Invoice 3-456-1 Data 16","3-456-1",16,16,{"v":16,"d":"$16.00"},{"v":16,"d":"$16.00"},{"$f":"(InvoiceDetails[[#This Row],[Qty]]*InvoiceDetails[[#This Row],[Unit price]])-InvoiceDetails[[#This Row],[Discount]]","v":{"v":240,"d":"$240.00"}}]
[null,"Invoice 3-456-1 Data 17","3-456-1",17,17,{"v":17,"d":"$17.00"},{"v":17,"d":"$17.00"},{"$f":"(InvoiceDetails[[#This Row],[Qty]]*InvoiceDetails[[#This Row],[Unit price]])-InvoiceDetails[[#This Row],[Discount]]","v":{"v":272,"d":"$272.00"}}]
[null,"Invoice 3-456-1 Data 18","3-456-1",18,18,{"v":18,"d":"$18.00"},{"v":18,"d":"$18.00"},{"$f":"(InvoiceDetails[[#This Row],[Qty]]*InvoiceDetails[[#This Row],[Unit price]])-InvoiceDetails[[#This Row],[Discount]]","v":{"v":306,"d":"$306.00"}}]
[null,"Invoice 3-456-1 Data 19","3-456-1",19,19,{"v":19,"d":"$19.00"},{"v":19,"d":"$19.00"},{"$f":"(InvoiceDetails[[#This Row],[Qty]]*InvoiceDetails[[#This Row],[Unit price]])-InvoiceDetails[[#This Row],[Discount]]","v":{"v":342,"d":"$342.00"}}]
[null,"Invoice 3-456-1 Data 20","3-456-1",20,20,{"v":20,"d":"$20.00"},{"v":20,"d":"$20.00"},{"$f":"(InvoiceDetails[[#This Row],[Qty]]*InvoiceDetails[[#This Row],[Unit price]])-InvoiceDetails[[#This Row],[Discount]]","v":{"v":380,"d":"$380.00"}}]
[null,"Invoice 3-456-1 Data 21","3-456-1",21,21,{"v":21,"d":"$21.00"},{"v":21,"d":"$21.00"},{"$f":"(InvoiceDetails[[#This Row],[Qty]]*InvoiceDetails[[#This Row],[Unit price]])-InvoiceDetails[[#This Row],[Discount]]","v":{"v":420,"d":"$420.00"}}]
[null,"Invoice 3-456-1 Data 22","3-456-1",22,22,{"v":22,"d":"$22.00"},{"v":22,"d":"$22.00"},{"$f":"(InvoiceDetails[[#This Row],[Qty]]*InvoiceDetails[[#This Row],[Unit price]])-InvoiceDetails[[#This Row],[Discount]]","v":{"v":462,"d":"$462.00"}}]
[null,"Invoice 3-456-1 Data 23","3-456-1",23,23,{"v":23,"d":"$23.00"},{"v":23,"d":"$23.00"},{"$f":"(InvoiceDetails[[#This Row],[Qty]]*InvoiceDetails[[#This Row],[Unit price]])-InvoiceDetails[[#This Row],[Discount]]","v":{"v":506,"d":"$506.00"}}]
[null,"Invoice 3-456-1 Data 24","3-456-1",24,24,{"v":24,"d":"$24.00"},{"v":24,"d":"$24.00"},{"$f":"(InvoiceDetails[[#This Row],[Qty]]*InvoiceDetails[[#This Row],[Unit price]])-InvoiceDetails[[#This Row],[Discount]]","v":{"v":552,"d":"$552.00"}}]
[null,"Invoice 3-456-1 Data 25","3-456-1",25,25,{"v":25,"d":"$25.00"},{"v":25,"d":"$25.00"},{"$f":"(InvoiceDetails[[#This Row],[Qty]]*InvoiceDetails[[#This Row],[Unit price]])-InvoiceDetails[[#This Row],[Discount]]","v":{"v":600,"d":"$600.00"}}]
[null,"Invoice 3-456-2 Data 1","3-456-2","Z4567",39,{"v":5,"d":"$5.00"},null,{"$f":"(InvoiceDetails[[#This Row],[Qty]]*InvoiceDetails[[#This Row],[Unit price]])-InvoiceDetails[[#This Row],[Discount]]","v":{"v":195,"d":"$195.00"}}]
[null,"Invoice 3-456-2 Data 2","3-456-2","Z4568",40,{"v":4,"d":"$4.00"},{"v":5,"d":"$5.00"},{"$f":"(InvoiceDetails[[#This Row],[Qty]]*InvoiceDetails[[#This Row],[Unit price]])-InvoiceDetails[[#This Row],[Discount]]","v":{"v":155,"d":"$155.00"}}]
[null,"Invoice 3-456-2 Data 3","3-456-2","Z4569",30,{"v":6,"d":"$6.00"},{"v":7,"d":"$7.00"},{"$f":"(InvoiceDetails[[#This Row],[Qty]]*InvoiceDetails[[#This Row],[Unit price]])-InvoiceDetails[[#This Row],[Discount]]","v":{"v":173,"d":"$173.00"}}]
[null,"Invoice 3-456-2 Data 4","3-456-2","Z4570",40,{"v":7,"d":"$7.00"},null,{"$f":"(InvoiceDetails[[#This Row],[Qty]]*InvoiceDetails[[#This Row],[Unit price]])-InvoiceDetails[[#This Row],[Discount]]","v":{"v":280,"d":"$280.00"}}]
[null,"Invoice 3-456-2 Data 5","3-456-2","Z4571",10,{"v":4,"d":"$4.00"},null,{"$f":"(InvoiceDetails[[#This Row],[Qty]]*InvoiceDetails[[#This Row],[Unit price]])-InvoiceDetails[[#This Row],[Discount]]","v":{"v":40,"d":"$40.00"}}]
[null,"Invoice 3-456-2 Data 6","3-456-2","Z4572",5,{"v":8,"d":"$8.00"},null,{"$f":"(InvoiceDetails[[#This Row],[Qty]]*InvoiceDetails[[#This Row],[Unit price]])-InvoiceDetails[[#This Row],[Discount]]","v":{"v":40,"d":"$40.00"}}]
[null,"Invoice 3-456-2 Data 7","3-456-2","Z4573",70,{"v":6,"d":"$6.00"},null,{"$f":"(InvoiceDetails[[#This Row],[Qty]]*InvoiceDetails[[#This Row],[Unit price]])-InvoiceDetails[[#This Row],[Discount]]","v":{"v":420,"d":"$420.00"}}]
[null,"Invoice 3-456-2 Data 8","3-456-2","Z4574",25,{"v":4,"d":"$4.00"},null,{"$f":"(InvoiceDetails[[#This Row],[Qty]]*InvoiceDetails[[#This Row],[Unit price]])-InvoiceDetails[[#This Row],[Discount]]","v":{"v":100,"d":"$100.00"}}]
[null,"Invoice 3-456-2 Data 9","3-456-2","Z4575",5,{"v":7,"d":"$7.00"},{"v":3,"d":"$3.00"},{"$f":"(InvoiceDetails[[#This Row],[Qty]]*InvoiceDetails[[#This Row],[Unit price]])-InvoiceDetails[[#This Row],[Discount]]","v":{"v":32,"d":"$32.00"}}]
[null,"Invoice 3-456-2 Data 10","3-456-2","Z4576",80,{"v":1,"d":"$1.00"},null,{"$f":"(InvoiceDetails[[#This Row],[Qty]]*InvoiceDetails[[#This Row],[Unit price]])-InvoiceDetails[[#This Row],[Discount]]","v":{"v":80,"d":"$80.00"}}]
[null,"Invoice 3-456-2 Data 11","3-456-2","Z4577",65,{"v":7,"d":"$7.00"},null,{"$f":"(InvoiceDetails[[#This Row],[Qty]]*InvoiceDetails[[#This Row],[Unit price]])-InvoiceDetails[[#This Row],[Discount]]","v":{"v":455,"d":"$455.00"}}]
[null,"Invoice 3-456-2 Data 12","3-456-2","Z4578",44,{"v":1,"d":"$1.00"},null,{"$f":"(InvoiceDetails[[#This Row],[Qty]]*InvoiceDetails[[#This Row],[Unit price]])-InvoiceDetails[[#This Row],[Discount]]","v":{"v":44,"d":"$44.00"}}]